[Event "Turkish Super League 2019"]
[Site "Konya"]
[Date "2019.07.21"]
[Round "5"]
[White "Sevgi, Volkan"]
[Black "Esipenko, Andrey"]
[Result "0-1"]
[ECO "D77"]
[WhiteElo "2302"]
[BlackElo "2621"]
[Annotator "ChessBase"]
[PlyCount "70"]
[EventDate "2019.07.17"]
[EventType "team-tourn"]
[EventCountry "TUR"]
[SourceTitle "playchess.com"]
[Source "ChessBase"]
[SourceQuality "1"]
[TimeControl "40/5400+30:1800+30"]

1. Nf3 d5 2. g3 g6 3. Bg2 Bg7 4. d4 Nf6 5. O-O O-O 6. c4 dxc4 7. Ne5 c5 8. dxc5 Qc7 9. Nxc4 Qxc5 10. Nba3 Nc6 {[%emt 0:17:00]} 11. Be3 {[%emt 0:46:30]} Qh5 {[%emt 0:00:30]} 12. f3 {[%emt 0:00:00]} Nd5 {[%emt 0:08:30]} 13. Bf2 {[%emt 0:03:00]} Rd8 {[%emt 0:02:30]} 14. Qe1 {[%emt 0:02:30]} Bh3 {[%emt 0:02:30]} 15. Rb1 {[%emt 0:18:30]} Bxg2 {[%emt 0:01:30]} 16. Kxg2 {[%emt 0:00:30]} Ndb4 {[%emt 0:01:30]} 17. e4 {[%emt 0:03:30]} Nd3 {[%emt 0:02:30]} 18. Qe3 {[%emt 0:01:30]} Bh6 {[%emt 0:01:30]} 19. f4 {[%emt 0:11:00]} e5 {[%emt 0:02:30]} 20. Be1 {[%emt 0:03:37]} b5 {[%emt 0:09:30]} 21. Nd2 {[%emt 0:00:23]} exf4 {[%emt 0:07:30]} 22. gxf4 {[%emt 0:00:07]} Qg4+ {[%emt 0:00:00]} 23. Bg3 {[%emt 0:00:47]} Bxf4 {[%emt 0:00:00]} 24. Qf3 {[%emt 0:02:48]} Qg5 {[%emt 0:07:30]} 25. h4 {[%emt 0:01:12]} Qxg3+ {[%emt 0:00:30]} 26. Qxg3 {[%emt 0:00:00]} Bxg3 {[%emt 0:00:30]} 27. Kxg3 {[%emt 0:00:03]} Nde5 {[%emt 0:01:30]} 28. Nf3 {[%emt 0:01:46]} Nxf3 {[%emt 0:02:30]} 29. Rxf3 {[%emt 0:00:20]} Ne5 {[%emt 0:00:30]} 30. Rb3 {[%emt 0:01:27]} a6 {[%emt 0:00:30]} 31. Nc2 {[%emt 0:00:59]} Nc4 {[%emt 0:05:30]} 32. Rc3 {[%emt 0:01:39]} Rd2 {[%emt 0:00:30]} 33. Nb4 {[%emt 0:02:44]} Re8 {[%emt 0:03:30]} 34. Kf3 {[%emt 0:01:30]} Rd4 {[%emt 0:01:30]} 35. Re1 {[%emt 0:00:22]} Ne5+ {[%emt 0:00:30]} 0-1

[Event "Turkish Super League 2019"]
[Site "Konya"]
[Date "2019.07.21"]
[Round "5"]
[White "Yildiz Kadioglu, Betul Cemre"]
[Black "Szczepkowska, Karina"]
[Result "1/2-1/2"]
[ECO "A05"]
[WhiteElo "2290"]
[BlackElo "2425"]
[Annotator "NA"]
[PlyCount "62"]
[EventDate "2019.07.17"]
[EventType "team-tourn"]
[EventCountry "TUR"]
[SourceTitle "playchess.com"]
[Source "ChessBase"]
[SourceQuality "1"]
[TimeControl "40/5400+30:1800+30"]

1. Nf3 Nf6 2. g3 b5 3. Bg2 Bb7 4. O-O e6 5. d3 Be7 6. e4 d6 7. a4 b4 8. c3 bxc3 9. bxc3 Nbd7 10. a5 {[%emt 0:17:00]} a6 {[%emt 0:39:00]} 11. Nbd2 {[%emt 0:00:30]} O-O {[%emt 0:01:30]} 12. Qe2 {[%emt 0:07:30]} c5 {[%emt 0:06:30]} 13. d4 {[%emt 0:05:30]} cxd4 {[%emt 0:03:30]} 14. cxd4 {[%emt 0:00:30]} Bc6 {[%emt 0:00:30]} 15. Rd1 {[%emt 0:03:30]} Bb5 {[%emt 0:03:30]} 16. Qe1 {[%emt 0:01:30]} Rb8 {[%emt 0:05:30]} 17. Nb1 {[%emt 0:14:30]} Qc7 {[%emt 0:08:30]} 18. Nc3 {[%emt 0:03:30]} Bc4 {[%emt 0:00:30]} 19. Bd2 {[%emt 0:03:30]} Rfc8 {[%emt 0:03:30]} 20. Rdc1 {[%emt 0:02:30]} Qa7 {[%emt 0:00:30]} 21. Be3 {[%emt 0:01:30]} d5 {[%emt 0:01:30]} 22. Bf4 {[%emt 0:07:30]} Ra8 {[%emt 0:00:30]} 23. e5 {[%emt 0:09:30]} Ne8 {[%emt 0:01:30]} 24. Na4 {[%emt 0:01:30]} Rab8 {[%emt 0:01:30]} 25. Rab1 {[%emt 0:02:30]} Nc7 {[%emt 0:05:34]} 26. Be3 {[%emt 0:03:00]} Rxb1 {[%emt 0:05:43]} 27. Rxb1 {[%emt 0:00:03]} Nb5 {[%emt 0:01:20]} 28. Nb2 {[%emt 0:06:48]} Na3 {[%emt 0:04:26]} 29. Rc1 {[%emt 0:00:02]} Qb7 {[%emt 0:00:03]} 30. Nxc4 {[%emt 0:02:18]} Nxc4 {[%emt 0:00:49]} 31. Rb1 {[%emt 0:00:27]} Qc7 {[%emt 0:00:59]} 1/2-1/2

[Event "Turkish Super League 2019"]
[Site "Konya"]
[Date "2019.07.21"]
[Round "5"]
[White "Olcum, Ahmet"]
[Black "Demircioglu, Emre"]
[Result "1-0"]
[ECO "D02"]
[WhiteElo "2271"]
[BlackElo "2242"]
[Annotator "NA"]
[PlyCount "45"]
[EventDate "2019.07.17"]
[EventType "team-tourn"]
[EventCountry "TUR"]
[SourceTitle "playchess.com"]
[Source "ChessBase"]
[SourceQuality "1"]
[TimeControl "40/5400+30:1800+30"]

1. d4 Nf6 2. Bf4 d5 3. e3 e6 4. Nd2 Bd6 5. Bg3 c5 6. c3 Nc6 7. Ngf3 O-O 8. Bb5 Ne7 9. Bd3 {[%emt 0:24:30]} Ng6 {[%emt 0:32:30]} 10. Ne5 {[%emt 0:32:30]} b6 {[%emt 0:02:30]} 11. f4 {[%emt 0:02:30]} Bb7 {[%emt 0:03:30]} 12. Qf3 {[%emt 0:02:30]} Ne8 {[%emt 0:27:30]} 13. h4 {[%emt 0:05:30]} Ne7 {[%emt 0:01:30]} 14. h5 {[%emt 0:06:30]} f5 {[%emt 0:01:30]} 15. Bh4 {[%emt 0:01:30]} Nf6 {[%emt 0:00:30]} 16. Bxf6 {[%emt 0:06:06]} gxf6 {[%emt 0:10:55]} 17. Qg3+ {[%emt 0:00:10]} Kh8 {[%emt 0:14:39]} 18. Ng6+ {[%emt 0:00:11]} Kg7 {[%emt 0:00:00]} 19. Nxf8+ {[%emt 0:02:22]} Kxf8 {[%emt 0:00:00]} 20. Qh4 {[%emt 0:00:09]} Kf7 {[%emt 0:00:22]} 21. g4 {[%emt 0:04:41]} fxg4 {[%emt 0:01:18]} 22. Bxh7 {[%emt 0:03:37]} f5 {[%emt 0:02:36]} 23. Bg6+ {[%emt 0:00:13]} 1-0

[Event "Turkish Super League 2019"]
[Site "Konya"]
[Date "2019.07.21"]
[Round "5"]
[White "Yuksel, Atilla Koksal"]
[Black "Aydin, Hakan Arda"]
[Result "1-0"]
[ECO "C56"]
[WhiteElo "2241"]
[BlackElo "1956"]
[Annotator "NA"]
[PlyCount "111"]
[EventDate "2019.07.17"]
[EventType "team-tourn"]
[EventCountry "TUR"]
[SourceTitle "playchess.com"]
[Source "ChessBase"]
[SourceQuality "1"]
[TimeControl "40/5400+30:1800+30"]

1. e4 e5 2. Nf3 Nc6 3. d4 exd4 4. Bc4 Nf6 5. O-O Nxe4 6. Re1 d5 7. Bxd5 Qxd5 8. Nc3 Qa5 9. Nxe4 Be6 10. Neg5 O-O-O 11. Nxe6 fxe6 12. Rxe6 Bd6 13. Qe2 Qh5 14. h3 Rhe8 {[%emt 0:26:00]} 15. Kf1 {[%emt 0:36:30]} Kd7 {[%emt 0:14:30]} 16. Ne5+ {[%emt 0:01:30]} Bxe5 {[%emt 0:08:30]} 17. Qxh5 {[%emt 0:00:30]} Rxe6 {[%emt 0:00:00]} 18. Qf7+ {[%emt 0:06:30]} Ne7 {[%emt 0:04:00]} 19. Bg5 {[%emt 0:00:30]} h6 {[%emt 0:01:30]} 20. Bxe7 {[%emt 0:00:30]} Rxe7 {[%emt 0:00:30]} 21. Qf5+ {[%emt 0:00:00]} Ke8 {[%emt 0:00:30]} 22. Re1 {[%emt 0:00:00]} Bd6 {[%emt 0:11:30]} 23. Rxe7+ {[%emt 0:00:30]} Bxe7 {[%emt 0:00:30]} 24. Qb5+ {[%emt 0:00:30]} Rd7 {[%emt 0:00:30]} 25. Qxb7 {[%emt 0:00:30]} c5 {[%emt 0:01:30]} 26. Qc8+ {[%emt 0:01:30]} Rd8 {[%emt 0:00:30]} 27. Qc6+ {[%emt 0:00:00]} Rd7 {[%emt 0:00:30]} 28. Ke2 {[%emt 0:03:00]} Bd6 {[%emt 0:03:30]} 29. Kd3 {[%emt 0:00:30]} Ke7 {[%emt 0:00:30]} 30. Ke4 {[%emt 0:01:30]} Rc7 {[%emt 0:05:30]} 31. Qd5 {[%emt 0:00:30]} Rc8 {[%emt 0:02:30]} 32. Qb7+ {[%emt 0:00:30]} Rc7 {[%emt 0:00:30]} 33. Qa8 {[%emt 0:00:30]} Kd7 {[%emt 0:09:53]} 34. Qg8 {[%emt 0:03:30]} Kc6 {[%emt 0:02:46]} 35. Qd5+ {[%emt 0:00:30]} Kd7 {[%emt 0:00:25]} 36. b3 {[%emt 0:00:00]} Ke7 {[%emt 0:02:29]} 37. Kf5 {[%emt 0:01:00]} Rd7 {[%emt 0:02:14]} 38. Qg8 {[%emt 0:00:30]} g5 {[%emt 0:01:21]} 39. Qh8 {[%emt 0:01:30]} Bc7 {[%emt 0:02:06]} 40. Qf6+ {[%emt 0:00:00]} Ke8 {[%emt 0:00:00]} 41. Qc6 {[%emt 0:02:00]} Ke7 {[%emt 0:04:16]} 42. Qxc5+ {[%emt 0:00:30]} Ke8 {[%emt 0:02:30]} 43. Qc6 {[%emt 0:01:30]} Ke7 {[%emt 0:00:30]} 44. Qxh6 {[%emt 0:01:30]} Ke8 {[%emt 0:01:30]} 45. Qh8+ {[%emt 0:00:30]} Kf7 {[%emt 0:00:30]} 46. Qh7+ {[%emt 0:00:30]} Ke8 {[%emt 0:00:30]} 47. Qg8+ {[%emt 0:00:30]} Ke7 {[%emt 0:00:00]} 48. Qxg5+ {[%emt 0:00:00]} Ke8 {[%emt 0:00:00]} 49. Qg8+ {[%emt 0:00:00]} Ke7 {[%emt 0:00:30]} 50. Qg7+ {[%emt 0:00:30]} Ke8 {[%emt 0:00:30]} 51. Qh8+ {[%emt 0:00:00]} Ke7 {[%emt 0:00:30]} 52. Qf6+ {[%emt 0:00:00]} Ke8 {[%emt 0:00:30]} 53. Qc6 {[%emt 0:00:00]} Ke7 {[%emt 0:00:00]} 54. h4 {[%emt 0:00:00]} Bb6 {[%emt 0:01:00]} 55. Qf6+ {[%emt 0:00:30]} Ke8 {[%emt 0:00:30]} 56. Ke4 {[%emt 0:00:30]} 1-0

[Event "Turkish Super League 2019"]
[Site "Konya"]
[Date "2019.07.21"]
[Round "5"]
[White "Yaran, Siar"]
[Black "Citak, Selim"]
[Result "0-1"]
[ECO "A01"]
[WhiteElo "2197"]
[BlackElo "2253"]
[Annotator "NA"]
[PlyCount "82"]
[EventDate "2019.07.17"]
[EventType "team-tourn"]
[EventCountry "TUR"]
[SourceTitle "playchess.com"]
[Source "ChessBase"]
[SourceQuality "1"]
[TimeControl "40/5400+30:1800+30"]

1. b3 d5 2. Bb2 Bg4 3. g3 Nc6 4. Bg2 e5 5. c4 d4 6. d3 Nf6 7. Nf3 Be7 8. O-O O-O 9. Na3 Re8 10. Nc2 a5 11. Qd2 Bc5 12. h3 {[%emt 0:26:00]} Bh5 {[%emt 0:34:00]} 13. g4 {[%emt 0:15:30]} Bg6 {[%emt 0:00:30]} 14. Nh4 {[%emt 0:01:30]} Ne4 {[%emt 0:01:30]} 15. dxe4 {[%emt 0:02:30]} Qxh4 {[%emt 0:00:00]} 16. a3 {[%emt 0:05:30]} h5 {[%emt 0:02:00]} 17. b4 {[%emt 0:05:30]} Be7 {[%emt 0:02:30]} 18. b5 {[%emt 0:07:30]} Nd8 {[%emt 0:03:30]} 19. f4 {[%emt 0:04:30]} hxg4 {[%emt 0:03:30]} 20. hxg4 {[%emt 0:02:30]} Qxg4 {[%emt 0:02:30]} 21. f5 {[%emt 0:01:30]} Bh5 {[%emt 0:03:30]} 22. Rf3 {[%emt 0:02:30]} Qg5 {[%emt 0:09:30]} 23. Rd3 {[%emt 0:03:30]} Qxd2 {[%emt 0:01:30]} 24. Rxd2 {[%emt 0:00:30]} Bg5 {[%emt 0:00:00]} 25. e3 {[%emt 0:00:30]} c5 {[%emt 0:04:00]} 26. Kf2 {[%emt 0:01:30]} Bh4+ {[%emt 0:03:30]} 27. Kg1 {[%emt 0:00:30]} b6 {[%emt 0:03:30]} 28. Bf1 {[%emt 0:00:30]} Bg5 {[%emt 0:01:30]} 29. Rh2 {[%emt 0:02:30]} g6 {[%emt 0:04:30]} 30. Kf2 {[%emt 0:00:32]} Nb7 {[%emt 0:03:30]} 31. Bd3 {[%emt 0:03:21]} Rad8 {[%emt 0:01:34]} 32. Rg1 {[%emt 0:01:08]} f6 {[%emt 0:06:36]} 33. Bc1 {[%emt 0:13:35]} dxe3+ {[%emt 0:01:28]} 34. Nxe3 {[%emt 0:00:30]} Rxd3 {[%emt 0:00:30]} 35. Nd5 {[%emt 0:00:30]} Kf7 {[%emt 0:03:14]} 36. Bxg5 {[%emt 0:03:29]} fxg5 {[%emt 0:00:04]} 37. Rxh5 {[%emt 0:00:09]} gxh5 {[%emt 0:00:43]} 38. Rxg5 {[%emt 0:00:02]} Nd6 {[%emt 0:02:16]} 39. Rg6 {[%emt 0:00:24]} Nxe4+ {[%emt 0:00:48]} 40. Ke2 {[%emt 0:00:00]} Rxd5 {[%emt 0:00:21]} 41. cxd5 {[%emt 0:00:20]} Nf6 {[%emt 0:00:56]} 0-1

[Event "Turkish Super League 2019"]
[Site "Konya"]
[Date "2019.07.21"]
[Round "5"]
[White "Akdogan, Alperen"]
[Black "Kilic, Efe Mert"]
[Result "0-1"]
[ECO "E07"]
[WhiteElo "2193"]
[BlackElo "2275"]
[Annotator "NA"]
[PlyCount "72"]
[EventDate "2019.07.17"]
[EventType "team-tourn"]
[EventCountry "TUR"]
[SourceTitle "playchess.com"]
[Source "ChessBase"]
[SourceQuality "1"]
[TimeControl "40/5400+30:1800+30"]

1. d4 Nf6 2. Nf3 e6 3. c4 d5 4. g3 Bb4+ 5. Bd2 Be7 6. Bg2 O-O 7. O-O Nbd7 8. Nc3 dxc4 9. e4 c6 10. Bf4 {[%emt 0:29:00]} Qa5 {[%emt 0:49:00]} 11. a3 {[%emt 0:26:30]} Re8 {[%emt 0:04:30]} 12. Re1 {[%emt 0:04:30]} Bf8 {[%emt 0:04:30]} 13. Qc2 {[%emt 0:14:30]} h6 {[%emt 0:03:30]} 14. Rad1 {[%emt 0:01:30]} b5 {[%emt 0:01:30]} 15. d5 {[%emt 0:01:42]} e5 {[%emt 0:07:30]} 16. dxc6 {[%emt 0:00:51]} exf4 {[%emt 0:00:30]} 17. cxd7 {[%emt 0:00:46]} Nxd7 {[%emt 0:00:30]} 18. e5 {[%emt 0:05:10]} Nc5 {[%emt 0:10:08]} 19. Nd4 {[%emt 0:02:33]} Bb7 {[%emt 0:04:29]} 20. Bxb7 {[%emt 0:01:25]} Nxb7 {[%emt 0:00:03]} 21. e6 {[%emt 0:03:23]} fxe6 {[%emt 0:01:23]} 22. Nxe6 {[%emt 0:00:13]} fxg3 {[%emt 0:02:41]} 23. hxg3 {[%emt 0:00:06]} Nc5 {[%emt 0:03:39]} 24. Qg6 {[%emt 0:05:07]} Nxe6 {[%emt 0:05:45]} 25. Rxe6 {[%emt 0:00:00]} Rxe6 {[%emt 0:00:00]} 26. Qxe6+ {[%emt 0:00:07]} Kh8 {[%emt 0:00:00]} 27. Rd5 {[%emt 0:03:24]} a6 {[%emt 0:01:03]} 28. Rd7 {[%emt 0:02:12]} Bxa3 {[%emt 0:02:04]} 29. Qe5 {[%emt 0:00:58]} Bf8 {[%emt 0:00:39]} 30. Nd5 {[%emt 0:00:08]} Rd8 {[%emt 0:00:45]} 31. Nf4 {[%emt 0:00:31]} Rxd7 {[%emt 0:00:23]} 32. Qe6 {[%emt 0:00:47]} Rd1+ {[%emt 0:00:36]} 33. Kh2 {[%emt 0:00:20]} Qd8 {[%emt 0:00:58]} 34. Ng6+ {[%emt 0:00:11]} Kh7 {[%emt 0:00:17]} 35. Qf5 {[%emt 0:00:05]} Qf6 {[%emt 0:00:10]} 36. Nxf8+ {[%emt 0:01:28]} Kg8 {[%emt 0:00:05]} 0-1

[Event "Turkish Super League 2019"]
[Site "Konya"]
[Date "2019.07.21"]
[Round "5"]
[White "Ozkan, Ervin"]
[Black "Samani, Yamac"]
[Result "1-0"]
[ECO "D02"]
[WhiteElo "2175"]
[BlackElo "2266"]
[Annotator "NA"]
[PlyCount "117"]
[EventDate "2019.07.17"]
[EventType "team-tourn"]
[EventCountry "TUR"]
[SourceTitle "playchess.com"]
[Source "ChessBase"]
[SourceQuality "1"]
[TimeControl "40/5400+30:1800+30"]

1. d4 c5 2. c3 Nf6 3. Nf3 d5 4. Bf4 Nc6 5. e3 Qb6 6. Qb3 c4 7. Qc2 Bf5 8. Qc1 e6 9. Nbd2 Be7 10. Be2 h6 11. O-O O-O 12. h3 a5 13. a4 Rfc8 {[%emt 0:16:30]} 14. Ne5 {[%emt 0:39:00]} Nxe5 {[%emt 0:02:30]} 15. Bxe5 {[%emt 0:06:30]} Qc6 {[%emt 0:01:30]} 16. Re1 {[%emt 0:05:30]} Ra7 {[%emt 0:04:30]} 17. Bd1 {[%emt 0:09:30]} b5 {[%emt 0:05:30]} 18. axb5 {[%emt 0:01:30]} Qxb5 {[%emt 0:00:30]} 19. Ba4 {[%emt 0:00:30]} Qb6 {[%emt 0:03:30]} 20. Bc2 {[%emt 0:03:30]} Bd3 {[%emt 0:07:30]} 21. Bxf6 {[%emt 0:07:30]} Bxf6 {[%emt 0:00:30]} 22. Bxd3 {[%emt 0:00:30]} cxd3 {[%emt 0:00:00]} 23. Nf3 {[%emt 0:01:30]} Rb7 {[%emt 0:21:00]} 24. Ra2 {[%emt 0:03:30]} Qb3 {[%emt 0:10:30]} 25. Qa1 {[%emt 0:00:30]} a4 {[%emt 0:00:30]} 26. Rd1 {[%emt 0:03:30]} a3 {[%emt 0:01:30]} 27. Rxa3 {[%emt 0:01:21]} Qxb2 {[%emt 0:00:30]} 28. Rxd3 {[%emt 0:06:18]} Be7 {[%emt 0:03:30]} 29. Qxb2 {[%emt 0:04:43]} Rxb2 {[%emt 0:00:00]} 30. Ra7 {[%emt 0:00:24]} Rb1+ {[%emt 0:02:00]} 31. Kh2 {[%emt 0:00:06]} Bd6+ {[%emt 0:00:00]} 32. g3 {[%emt 0:00:05]} Rb3 {[%emt 0:03:00]} 33. Rd7 {[%emt 0:03:37]} Rc6 {[%emt 0:13:10]} 34. Nd2 {[%emt 0:03:03]} Rb2 {[%emt 0:00:48]} 35. e4 {[%emt 0:00:40]} Ra6 {[%emt 0:00:04]} 36. exd5 {[%emt 0:02:16]} exd5 {[%emt 0:00:30]} 37. Kg2 {[%emt 0:00:03]} Kf8 {[%emt 0:02:40]} 38. Re3 {[%emt 0:01:47]} f5 {[%emt 0:05:54]} 39. Nf1 {[%emt 0:00:43]} f4 {[%emt 0:00:50]} 40. gxf4 {[%emt 0:00:00]} Bxf4 {[%emt 0:00:00]} 41. Rf3 {[%emt 0:06:24]} Rg6+ {[%emt 0:04:34]} 42. Ng3 {[%emt 0:01:30]} Rxg3+ {[%emt 0:00:30]} 43. Rxg3 {[%emt 0:00:30]} Bxg3 {[%emt 0:00:30]} 44. Kxg3 {[%emt 0:00:30]} Rc2 {[%emt 0:00:30]} 45. Rc7 {[%emt 0:00:00]} Kg8 {[%emt 0:00:00]} 46. h4 {[%emt 0:01:00]} Kh7 {[%emt 0:01:00]} 47. h5 {[%emt 0:01:30]} Rc1 {[%emt 0:00:30]} 48. Rc5 {[%emt 0:00:00]} Rg1+ {[%emt 0:00:30]} 49. Kh4 {[%emt 0:01:00]} Rh1+ {[%emt 0:00:30]} 50. Kg4 {[%emt 0:01:30]} Rg1+ {[%emt 0:00:30]} 51. Kf5 {[%emt 0:05:14]} Rg5+ {[%emt 0:00:30]} 52. Ke6 {[%emt 0:00:30]} Rxh5 {[%emt 0:00:30]} 53. Rxd5 {[%emt 0:00:00]} Rh1 {[%emt 0:00:30]} 54. c4 {[%emt 0:00:03]} Kg6 {[%emt 0:00:30]} 55. c5 {[%emt 0:00:27]} Rc1 {[%emt 0:00:00]} 56. Rd8 {[%emt 0:00:27]} h5 {[%emt 0:01:00]} 57. Rh8 {[%emt 0:00:44]} Rc4 {[%emt 0:00:30]} 58. Kd5 {[%emt 0:00:50]} Rc2 {[%emt 0:00:00]} 59. c6 {[%emt 0:00:00]} 1-0

[Event "Turkish Super League 2019"]
[Site "Konya"]
[Date "2019.07.21"]
[Round "5"]
[White "Cansun, Can Alp"]
[Black "Tarlabasi, Emirhan"]
[Result "1/2-1/2"]
[ECO "C03"]
[WhiteElo "2121"]
[BlackElo "2352"]
[Annotator "NA"]
[PlyCount "118"]
[EventDate "2019.07.17"]
[EventType "team-tourn"]
[EventCountry "TUR"]
[SourceTitle "playchess.com"]
[Source "ChessBase"]
[SourceQuality "1"]
[TimeControl "40/5400+30:1800+30"]

1. e4 e6 2. d4 d5 3. Nd2 Be7 4. g3 c5 5. exd5 Qxd5 6. Ngf3 cxd4 7. Bg2 Nc6 8. O-O Bf6 9. Re1 {[%emt 0:14:30]} Qd8 {[%emt 0:41:30]} 10. Ne4 {[%emt 0:00:30]} Be7 {[%emt 0:03:30]} 11. Bf4 {[%emt 0:06:30]} f6 {[%emt 0:10:30]} 12. c3 {[%emt 0:17:30]} dxc3 {[%emt 0:05:30]} 13. Qe2 {[%emt 0:02:30]} e5 {[%emt 0:06:30]} 14. Rad1 {[%emt 0:00:30]} Qa5 {[%emt 0:05:30]} 15. Nxc3 {[%emt 0:03:30]} Bg4 {[%emt 0:07:28]} 16. h3 {[%emt 0:05:30]} Bh5 {[%emt 0:06:47]} 17. g4 {[%emt 0:09:30]} Bf7 {[%emt 0:00:20]} 18. Nxe5 {[%emt 0:05:30]} Nxe5 {[%emt 0:02:11]} 19. Bxe5 {[%emt 0:00:30]} fxe5 {[%emt 0:01:53]} 20. Bxb7 {[%emt 0:00:30]} Rd8 {[%emt 0:01:23]} 21. Bc6+ {[%emt 0:00:30]} Kf8 {[%emt 0:00:06]} 22. Qf3 {[%emt 0:04:30]} Nf6 {[%emt 0:02:51]} 23. Rxd8+ {[%emt 0:03:30]} Bxd8 {[%emt 0:00:57]} 24. g5 {[%emt 0:11:56]} e4 {[%emt 0:00:33]} 25. Qg2 {[%emt 0:01:20]} Nh5 {[%emt 0:02:26]} 26. h4 {[%emt 0:00:08]} g6 {[%emt 0:01:31]} 27. Qxe4 {[%emt 0:00:22]} Bxg5 {[%emt 0:01:01]} 28. hxg5 {[%emt 0:00:50]} Qxg5+ {[%emt 0:00:30]} 29. Kf1 {[%emt 0:00:00]} Nf6 {[%emt 0:01:01]} 30. Qe7+ {[%emt 0:02:20]} Kg7 {[%emt 0:00:07]} 31. Nd5 {[%emt 0:04:12]} Qh4 {[%emt 0:00:38]} 32. Ne3 {[%emt 0:06:54]} Qh3+ {[%emt 0:00:40]} 33. Bg2 {[%emt 0:00:21]} Qd7 {[%emt 0:00:00]} 34. Qxd7 {[%emt 0:01:06]} Nxd7 {[%emt 0:00:27]} 35. Nd5 {[%emt 0:00:30]} Re8 {[%emt 0:00:30]} 36. Rc1 {[%emt 0:00:30]} Nf6 {[%emt 0:00:30]} 37. Rc7 {[%emt 0:00:30]} Rd8 {[%emt 0:00:30]} 38. Nxf6 {[%emt 0:00:30]} Kxf6 {[%emt 0:00:30]} 39. Rxa7 {[%emt 0:00:30]} h5 {[%emt 0:00:30]} 40. b4 {[%emt 0:00:30]} Rd2 {[%emt 0:00:30]} 41. a4 {[%emt 0:30:30]} Rb2 {[%emt 0:30:30]} 42. b5 {[%emt 0:00:00]} Bc4+ {[%emt 0:00:00]} 43. Kg1 {[%emt 0:00:00]} g5 {[%emt 0:00:00]} 44. Rc7 {[%emt 0:00:00]} Be2 {[%emt 0:00:00]} 45. Rc6+ {[%emt 0:00:00]} Kf5 {[%emt 0:00:00]} 46. b6 {[%emt 0:00:00]} Ba6 {[%emt 0:00:00]} 47. a5 {[%emt 0:00:00]} Rb5 {[%emt 0:00:00]} 48. b7 {[%emt 0:00:00]} Bxb7 {[%emt 0:00:00]} 49. Rb6 {[%emt 0:00:00]} Rxb6 {[%emt 0:00:00]} 50. axb6 {[%emt 0:00:00]} Ba6 {[%emt 0:00:00]} 51. b7 {[%emt 0:00:00]} Bxb7 {[%emt 0:00:00]} 52. Bxb7 {[%emt 0:00:00]} Kf4 {[%emt 0:00:00]} 53. Kg2 {[%emt 0:00:00]} g4 {[%emt 0:00:00]} 54. Kf1 {[%emt 0:00:00]} h4 {[%emt 0:00:00]} 55. Kg2 {[%emt 0:00:00]} Kg5 {[%emt 0:00:00]} 56. Bc8 {[%emt 0:00:03]} Kf4 {[%emt 0:00:00]} 57. Bb7 {[%emt 0:01:50]} Kg5 {[%emt 0:00:00]} 58. Ba6 {[%emt 0:00:00]} Kf4 {[%emt 0:00:00]} 59. Bb7 {[%emt 0:02:35]} Ke5 {[%emt 0:00:00]} 1/2-1/2

[Event "Turkish Super League 2019"]
[Site "Konya"]
[Date "2019.07.21"]
[Round "5"]
[White "Seyhanoglu, Deniz"]
[Black "Annaberdiyev, Babageldi"]
[Result "0-1"]
[ECO "A13"]
[WhiteElo "2115"]
[BlackElo "2244"]
[Annotator "NA"]
[PlyCount "86"]
[EventDate "2019.07.17"]
[EventType "team-tourn"]
[EventCountry "TUR"]
[SourceTitle "playchess.com"]
[Source "ChessBase"]
[SourceQuality "1"]
[TimeControl "40/5400+30:1800+30"]

1. c4 e6 2. g3 d5 3. Bg2 c6 4. Nf3 Nd7 5. b3 Ngf6 6. O-O a5 7. Nc3 Bb4 8. Bb2 O-O 9. a3 Be7 10. d4 Rb8 11. Qd3 b5 12. cxb5 cxb5 {[%emt 0:20:00]} 13. Nxb5 {[%emt 0:34:30]} Ba6 {[%emt 0:00:30]} 14. a4 {[%emt 0:00:30]} Ne4 {[%emt 0:02:30]} 15. Nd2 {[%emt 0:21:30]} Nd6 {[%emt 0:00:30]} 16. Qe3 {[%emt 0:04:30]} Bxb5 {[%emt 0:08:30]} 17. axb5 {[%emt 0:00:30]} Nxb5 {[%emt 0:00:00]} 18. Rfc1 {[%emt 0:02:30]} Bb4 {[%emt 0:02:00]} 19. Qd3 {[%emt 0:02:30]} Nf6 {[%emt 0:01:30]} 20. Nf3 {[%emt 0:03:30]} Qb6 {[%emt 0:06:30]} 21. Ne5 {[%emt 0:00:30]} Rfc8 {[%emt 0:00:30]} 22. g4 {[%emt 0:02:30]} Bd6 {[%emt 0:07:30]} 23. g5 {[%emt 0:03:30]} Bxe5 {[%emt 0:00:30]} 24. dxe5 {[%emt 0:00:00]} Nd7 {[%emt 0:00:30]} 25. Qd2 {[%emt 0:02:00]} Rxc1+ {[%emt 0:04:30]} 26. Rxc1 {[%emt 0:01:30]} Nf8 {[%emt 0:06:30]} 27. e3 {[%emt 0:01:30]} Na7 {[%emt 0:00:30]} 28. Bd4 {[%emt 0:00:30]} Qb7 {[%emt 0:00:30]} 29. Bc5 {[%emt 0:03:19]} Nc6 {[%emt 0:03:30]} 30. Bd6 {[%emt 0:00:55]} Rc8 {[%emt 0:01:30]} 31. Bf1 {[%emt 0:02:34]} Ng6 {[%emt 0:00:30]} 32. Qc3 {[%emt 0:03:19]} h6 {[%emt 0:05:30]} 33. gxh6 {[%emt 0:04:04]} Nce7 {[%emt 0:01:30]} 34. Qd2 {[%emt 0:01:12]} Rxc1 {[%emt 0:01:30]} 35. Qxc1 {[%emt 0:00:01]} Qxb3 {[%emt 0:00:30]} 36. Qc7 {[%emt 0:01:43]} Nf5 {[%emt 0:00:30]} 37. Qd8+ {[%emt 0:01:25]} Kh7 {[%emt 0:00:00]} 38. hxg7 {[%emt 0:00:32]} Kxg7 {[%emt 0:01:00]} 39. Qxa5 {[%emt 0:04:48]} Qd1 {[%emt 0:00:00]} 40. Qb4 {[%emt 0:00:00]} d4 {[%emt 0:00:00]} 41. exd4 Nxd4 {[%emt 0:24:30]} 42. f3 {[%emt 0:29:40]} Nf4 {[%emt 0:00:30]} 43. Qa3 {[%emt 0:02:32]} Qe1 {[%emt 0:09:30]} 0-1

[Event "Turkish Super League 2019"]
[Site "Konya"]
[Date "2019.07.21"]
[Round "5"]
[White "Dolgun, Can"]
[Black "Ozer, Omer Faruk"]
[Result "0-1"]
[ECO "B15"]
[WhiteElo "2064"]
[BlackElo "2369"]
[Annotator "NA"]
[PlyCount "70"]
[EventDate "2019.07.17"]
[EventType "team-tourn"]
[EventCountry "TUR"]
[SourceTitle "playchess.com"]
[Source "ChessBase"]
[SourceQuality "1"]
[TimeControl "40/5400+30:1800+30"]

1. e4 g6 2. d4 Bg7 3. Nc3 c6 4. Nf3 d5 5. h3 dxe4 6. Nxe4 Nf6 7. Nxf6+ exf6 8. Bc4 O-O 9. Be3 Nd7 10. Qd2 Nb6 11. Be2 Nd5 12. Bh6 Bxh6 13. Qxh6 Re8 14. Qd2 Qe7 15. O-O Bxh3 16. Bc4 {[%emt 0:23:00]} Bg4 {[%emt 0:33:00]} 17. Bxd5 {[%emt 0:00:30]} cxd5 {[%emt 0:00:30]} 18. Rfe1 {[%emt 0:00:30]} Qd7 {[%emt 0:04:30]} 19. Rxe8+ {[%emt 0:00:30]} Rxe8 {[%emt 0:00:30]} 20. Re1 {[%emt 0:00:30]} Bxf3 {[%emt 0:02:30]} 21. Rxe8+ {[%emt 0:00:00]} Qxe8 {[%emt 0:00:30]} 22. gxf3 {[%emt 0:00:00]} Qc6 {[%emt 0:18:30]} 23. Qa5 {[%emt 0:05:30]} a6 {[%emt 0:00:30]} 24. a4 {[%emt 0:01:30]} Qxc2 {[%emt 0:07:30]} 25. Qxd5 {[%emt 0:00:30]} Qc1+ {[%emt 0:00:00]} 26. Kh2 {[%emt 0:02:30]} Qh6+ {[%emt 0:00:00]} 27. Kg3 {[%emt 0:00:00]} Qg5+ {[%emt 0:00:30]} 28. Qxg5 {[%emt 0:00:00]} fxg5 {[%emt 0:00:00]} 29. f4 {[%emt 0:03:30]} gxf4+ {[%emt 0:00:00]} 30. Kxf4 {[%emt 0:00:30]} Kf8 {[%emt 0:00:00]} 31. Kg5 {[%emt 0:00:00]} h5 {[%emt 0:00:00]} 32. f4 {[%emt 0:00:00]} Ke7 {[%emt 0:00:30]} 33. f5 {[%emt 0:00:00]} f6+ {[%emt 0:00:30]} 34. Kh4 {[%emt 0:01:00]} gxf5 {[%emt 0:00:30]} 35. Kxh5 {[%emt 0:00:30]} Ke6 {[%emt 0:00:30]} 0-1